bitfinex/quotes_BTCUSD_20250114
["timestamp","ask_amount","ask_price","bid_price","bid_amount"]
[1736894288668,0.27032683,96794.0,96793.0,0.4494815]
[1736894288982,0.27132683,96794.0,96793.0,0.4494815]
[1736894289337,0.27032683,96794.0,96793.0,0.4504815]
[1736894289744,0.12132683,96794.0,96793.0,0.4504815]
[1736894289939,0.10608272,96794.0,96793.0,0.4504815]
[1736894290168,0.10608272,96794.0,96793.0,0.5493815]
[1736894290912,0.0018558,96794.0,96793.0,0.5493815]
[1736894291191,0.0018558,96794.0,96793.0,1.1938815]
[1736894291393,0.0008558,96794.0,96793.0,1.29910842]
[1736894291753,0.0018558,96794.0,96793.0,1.29810842]
[1736894292384,0.0008558,96794.0,96793.0,1.1938815]
[1736894293156,0.0018558,96794.0,96793.0,1.1938815]
[1736894293562,0.0018558,96794.0,96793.0,1.33179746]
[1736894295046,0.0008558,96794.0,96793.0,1.1938815]
[1736894295244,0.0008558,96794.0,96793.0,1.1948815]
[1736894295927,0.0008558,96794.0,96793.0,1.33279746]
[1736894296693,0.0008558,96794.0,96793.0,1.28710313]
[1736894297474,0.0008558,96794.0,96793.0,1.1948815]
[1736894298429,0.0008558,96794.0,96793.0,1.29910842]
[1736894299190,0.0008558,96794.0,96793.0,1.29810842]
[1736894299392,0.00179362,96796.0,96795.0,0.0999]
[1736894299592,0.00179362,96796.0,96795.0,0.23323282]
[1736894299814,0.00179362,96796.0,96795.0,0.36825864]
[1736894302061,0.00179362,96796.0,96795.0,0.37325864]
[1736894302404,0.00179362,96796.0,96795.0,0.37625864]
[1736894303115,0.00179362,96796.0,96795.0,0.51427747]
[1736894304366,0.00179362,96796.0,96795.0,0.52455252]
[1736894304577,0.00179362,96796.0,96795.0,1.39134356]
[1736894304783,0.00179362,96796.0,96795.0,1.49134356]
[1736894305109,0.00179362,96796.0,96795.0,1.35332473]
[1736894305619,0.00179362,96796.0,96795.0,1.49134356]
[1736894306382,0.00179362,96796.0,96795.0,1.35332473]
[1736894307134,0.00179362,96796.0,96795.0,1.44524382]
[1736894309141,0.00179362,96796.0,96795.0,1.35332473]
[1736894313475,0.00179362,96796.0,96795.0,1.37632473]
[1736894313901,0.00179362,96796.0,96795.0,1.46824382]
[1736894314553,0.00179362,96796.0,96795.0,1.37632473]
[1736894317849,0.00179362,96796.0,96795.0,1.51434356]
[1736894319543,0.00179362,96796.0,96795.0,1.37632473]
[1736894320644,0.00179362,96796.0,96795.0,1.56040112]
[1736894321299,0.00179362,96796.0,96795.0,1.37632473]
[1736894323720,0.00179362,96796.0,96795.0,1.5602048]
[1736894324859,0.00179362,96796.0,96795.0,1.37632473]
[1736894325332,0.00179362,96796.0,96795.0,1.40838661]
[1736894326451,0.00179362,96796.0,96795.0,1.63810243]
[1736894326664,0.00179362,96796.0,96795.0,1.63510243]
[1736894327022,0.00179362,96796.0,96795.0,1.63910243]
[1736894328083,0.00179362,96796.0,96795.0,1.63410243]
[1736894328306,0.00179362,96796.0,96795.0,1.41138661]
[1736894330373,0.00179362,96796.0,96795.0,1.41128661]
[1736894332384,0.00179362,96796.0,96795.0,1.68762721]
[1736894334827,0.00179362,96796.0,96795.0,1.41128661]
[1736894339318,0.00179362,96796.0,96795.0,1.82142506]
[1736894340168,0.00179362,96796.0,96795.0,1.41128661]
[1736894341755,0.00179362,96796.0,96795.0,1.30312797]
[1736894342000,0.00179362,96796.0,96795.0,1.01992797]
[1736894342229,0.00179362,96796.0,96795.0,1.10955292]
[1736894342428,0.00179362,96796.0,96795.0,0.97759104]
[1736894342599,0.00179362,96796.0,96795.0,1.07749104]
[1736894342820,0.00179362,96796.0,96795.0,0.97759104]
[1736894343250,0.00712234,96796.0,96795.0,1.07749104]
[1736894343412,0.00712234,96796.0,96795.0,1.07349104]
[1736894343615,0.00712234,96796.0,96795.0,1.07649104]
[1736894343980,0.00179362,96796.0,96795.0,0.97659104]
[1736894344256,0.00179362,96796.0,96795.0,1.07649104]
[1736894344462,0.00179362,96796.0,96795.0,0.87679104]
[1736894344635,0.00179362,96796.0,96795.0,0.86979104]
[1736894344842,0.00179362,96796.0,96795.0,0.86679104]
[1736894345016,0.00179362,96796.0,96795.0,1.01054224]
[1736894345219,0.00179362,96796.0,96795.0,1.10544224]
[1736894345852,0.00179362,96796.0,96795.0,0.96669104]
[1736894346348,0.00179362,96796.0,96795.0,1.05914888]
[1736894346893,0.00712234,96796.0,96795.0,0.95924888]
[1736894347038,0.00712234,96796.0,96795.0,1.05914888]
[1736894347250,0.00712234,96796.0,96795.0,0.96669104]
[1736894347988,0.00179362,96796.0,96795.0,0.96669104]
[1736894348595,0.00179362,96796.0,96795.0,0.86679104]
[1736894349505,0.00179362,96796.0,96795.0,0.96669104]
[1736894350663,0.10602054,96796.0,96795.0,0.86679104]
[1736894352326,0.10602054,96796.0,96795.0,0.96669104]
[1736894352554,0.12282516,96796.0,96795.0,0.96669104]
[1736894353467,0.12282516,96796.0,96795.0,0.86679104]
[1736894353726,0.20602516,96796.0,96795.0,0.96669104]
[1736894354036,0.21114333,96796.0,96795.0,0.96669104]
[1736894354737,0.19433871,96796.0,96795.0,0.96669104]
[1736894355148,0.19433871,96796.0,96795.0,0.96848339]
[1736894364969,0.11113871,96796.0,96795.0,0.96848339]
[1736894369536,0.11104881,96796.0,96795.0,0.96848339]
[1736894375668,0.10593064,96796.0,96795.0,0.96848339]
[1736894376292,0.11102183,96796.0,96795.0,0.96848339]
[1736894377830,0.10593064,96796.0,96795.0,0.96848339]
[1736894378040,0.00170372,96796.0,96795.0,1.19698339]
[1736894379780,0.00170372,96796.0,96795.0,1.09718339]
[1736894379997,0.00170372,96796.0,96795.0,1.19698339]
[1736894388590,0.20438507,96817.0,96806.0,0.206597]
[1736894388799,0.10422692,96816.0,96806.0,0.206597]
[1736894389150,0.10931324,96816.0,96806.0,0.206597]
[1736894389728,0.10931324,96816.0,96812.0,0.0999]
[1736894392679,0.206579,96815.0,96812.0,0.1009]
[1736894392815,0.10422692,96814.0,96812.0,0.1009]
[1736894393015,0.1093132,96814.0,96812.0,0.1009]
[1736894394011,0.12014272,96814.0,96812.0,0.1009]
[1736894394443,0.12014272,96814.0,96813.0,0.32219104]
[1736894394810,0.1093132,96814.0,96813.0,0.32219104]
[1736894395900,0.1093132,96814.0,96813.0,0.32309104]
[1736894400629,0.2593132,96814.0,96813.0,0.32309104]
[1736894401183,0.2595132,96814.0,96813.0,0.32309104]
[1736894401589,0.2603667,96814.0,96813.0,0.32309104]
[1736894401812,0.36162442,96814.0,96813.0,0.32309104]
[1736894402037,0.48852102,96814.0,96813.0,0.001]
[1736894402459,0.53532102,96814.0,96813.0,0.001]
[1736894403095,0.76762321,96814.0,96813.0,0.001]
[1736894403287,0.484209,96801.0,96800.0,0.32209104]
[1736894403442,0.70117722,96801.0,96800.0,0.32209104]
[1736894403648,0.70620808,96801.0,96800.0,0.32209104]
[1736894404646,0.71420808,96801.0,96800.0,0.32309104]
[1736894405060,0.71420808,96801.0,96800.0,0.32299104]
[1736894406065,0.71620808,96801.0,96800.0,0.32299104]
[1736894406435,0.71620808,96801.0,96800.0,0.001]
[1736894407159,0.37982,96796.0,96793.0,0.00179046]
[1736894407361,0.65260281,96796.0,96793.0,0.00179046]
[1736894408945,0.65260281,96796.0,96795.0,0.00279235]
[1736894408946,0.67177466,96796.0,96795.0,0.00279235]
[1736894409669,0.67177466,96796.0,96793.0,0.00179046]
[1736894409670,0.1732,96795.0,96793.0,0.00179046]
[1736894409870,0.27742692,96795.0,96793.0,0.00179046]
[1736894410072,0.27231842,96795.0,96793.0,0.00179046]
[1736894410297,0.37621502,96795.0,96793.0,0.00179046]
[1736894410901,0.38121502,96795.0,96793.0,0.00179046]
[1736894411526,0.41113556,96795.0,96794.0,0.00279235]
[1736894416377,0.379624,96794.0,96793.0,0.00179046]
[1736894416525,0.48385092,96794.0,96793.0,0.00179046]
[1736894416727,0.57840044,96794.0,96793.0,0.00179046]
[1736894417134,0.56840044,96794.0,96793.0,0.00179046]
[1736894417790,0.58240044,96794.0,96793.0,0.00279046]
[1736894427526,0.6033862,96794.0,96793.0,0.00279046]
[1736894427972,0.5136449,96794.0,96793.0,0.00279046]
[1736894429873,0.5136449,96794.0,96793.0,0.08119046]
[1736894429874,0.4906449,96794.0,96793.0,0.08119046]
[1736894430073,0.4963249,96794.0,96793.0,0.08119046]
[1736894430254,0.3463249,96794.0,96793.0,0.08119046]
[1736894431019,0.4873249,96794.0,96793.0,0.08019046]
[1736894431273,0.4873249,96794.0,96793.0,0.08119046]
[1736894431450,0.4963249,96794.0,96793.0,0.08119046]
[1736894431652,0.4913249,96794.0,96793.0,0.08119046]
[1736894432045,0.4933249,96794.0,96793.0,0.08119046]
[1736894439196,0.47233914,96794.0,96793.0,0.08119046]
[1736894444454,0.56199871,96794.0,96793.0,0.08119046]
[1736894445284,0.47233914,96794.0,96793.0,0.08119046]
[1736894447949,0.47319284,96794.0,96793.0,0.08119046]
[1736894450539,0.46751284,96794.0,96793.0,0.08119046]
[1736894450837,0.12088884,96794.0,96793.0,0.08119046]
[1736894451433,0.12088884,96794.0,96793.0,0.4031815]
[1736894451660,0.11608062,96794.0,96793.0,0.4031815]
[1736894452288,0.11608062,96794.0,96793.0,0.5528815]
[1736894452795,0.0118537,96794.0,96793.0,0.6528815]
[1736894453377,0.0098537,96794.0,96793.0,0.6528815]
[1736894453579,0.0008537,96794.0,96793.0,1.1964815]
[1736894453804,0.0028537,96794.0,96793.0,1.1964815]
[1736894454453,0.0118537,96794.0,96793.0,1.1974815]
[1736894455595,0.0098537,96794.0,96793.0,1.1974815]
[1736894455793,0.0008537,96794.0,96793.0,1.1974815]
[1736894456143,0.0008537,96794.0,96793.0,1.1964815]
[1736894456570,0.0008537,96794.0,96793.0,1.1984815]
[1736894457195,0.0008537,96794.0,96793.0,1.2004815]
[1736894457527,0.0008537,96794.0,96793.0,1.1964815]
[1736894458927,0.0008537,96794.0,96793.0,1.2044815]
[1736894459478,0.0008537,96794.0,96793.0,1.2014815]
[1736894460139,0.0008537,96794.0,96793.0,1.2004815]
[1736894460532,0.0008537,96794.0,96793.0,1.1994815]
[1736894460704,0.0008537,96794.0,96793.0,1.2024815]
[1736894462751,0.0008537,96794.0,96793.0,1.30670842]
[1736894464570,0.0008537,96794.0,96793.0,1.2024815]
[1736894468836,0.0008537,96794.0,96793.0,1.29466813]
[1736894469804,0.00078195,96794.0,96793.0,1.29466813]
[1736894470651,0.00078195,96794.0,96793.0,1.2024815]
[1736894471393,0.00078195,96794.0,96793.0,1.29466813]
[1736894471595,0.00078195,96794.0,96793.0,1.39889505]
[1736894472261,0.00478195,96794.0,96793.0,1.39889505]
[1736894472663,0.00478195,96794.0,96793.0,1.49889505]
[1736894473449,0.00478195,96794.0,96793.0,1.40670842]
[1736894474098,0.00478195,96794.0,96793.0,1.74943083]
[1736894474748,0.0047102,96794.0,96793.0,1.795596]
[1736894475171,0.0047102,96794.0,96793.0,1.61093534]
[1736894476219,0.0047102,96794.0,96793.0,1.48714216]
[1736894477798,0.0047102,96794.0,96793.0,1.38714216]
[1736894478240,0.0047102,96794.0,96793.0,1.48714216]
[1736894478859,0.0047102,96794.0,96793.0,1.38714216]
[1736894479283,0.0047102,96794.0,96793.0,1.48714216]
[1736894479450,0.0047102,96794.0,96793.0,1.49136908]
[1736894479659,0.0047102,96794.0,96793.0,1.59136908]
[1736894479872,0.0047102,96794.0,96793.0,1.2024815]
[1736894491893,0.0047102,96794.0,96793.0,1.1526815]
[1736894492801,0.0047102,96794.0,96793.0,1.24473359]
[1736894493239,0.0047102,96794.0,96793.0,1.14483359]
[1736894494137,0.0047102,96794.0,96793.0,1.06643359]
[1736894494520,0.0047102,96794.0,96793.0,1.16633359]
[1736894494931,0.10893712,96794.0,96793.0,0.96343359]
[1736894495134,0.1199162,96794.0,96793.0,0.8713815]
[1736894495336,0.3265402,96794.0,96793.0,0.3287815]
[1736894495510,0.4088402,96794.0,96793.0,0.3287815]
[1736894495716,0.41441105,96794.0,96793.0,0.3287815]
[1736894495935,0.41441105,96794.0,96793.0,0.3257815]
[1736894496737,0.41441105,96794.0,96793.0,0.3237815]
[1736894496915,0.41441105,96794.0,96793.0,0.3247815]
[1736894497139,0.41641105,96794.0,96793.0,0.3247815]
[1736894497344,0.41441105,96794.0,96793.0,0.3247815]
[1736894497545,0.41441105,96794.0,96793.0,0.3237815]
[1736894497729,0.41841105,96794.0,96793.0,0.3237815]
[1736894498342,0.56441105,96794.0,96793.0,0.3237815]
[1736894498818,0.56641105,96794.0,96793.0,0.3237815]
[1736894499871,0.57341105,96794.0,96793.0,0.3247815]
[1736894500124,0.56441105,96794.0,96793.0,0.3237815]
[1736894500318,0.57641105,96794.0,96793.0,0.3247815]
[1736894509782,0.5708402,96794.0,96793.0,0.3247815]
[1736894520482,0.55986112,96794.0,96793.0,0.3247815]
[1736894520927,0.47756112,96794.0,96793.0,0.3247815]
[1736894523783,0.47756112,96794.0,96793.0,0.32362976]
[1736894526202,0.48245028,96794.0,96793.0,0.32362976]
[1736894527086,0.48813028,96794.0,96793.0,0.32362976]
[1736894527314,0.58805089,96794.0,96793.0,0.32362976]
[1736894535987,0.48245028,96794.0,96793.0,0.45042976]
[1736894537982,0.48813028,96794.0,96793.0,0.45042976]
[1736894538833,0.48245028,96794.0,96793.0,0.45042976]
[1736894539274,0.12582628,96794.0,96793.0,0.55032976]
[1736894539904,0.12282628,96794.0,96793.0,0.55032976]
[1736894540337,0.12482628,96794.0,96793.0,0.55032976]
[1736894540538,0.11582628,96794.0,96793.0,0.54932976]
[1736894540692,0.12182628,96794.0,96793.0,0.55032976]
[1736894541094,0.11582628,96794.0,96793.0,0.54932976]
[1736894541456,0.11882628,96794.0,96793.0,0.54932976]
[1736894541708,0.11982628,96794.0,96793.0,0.54932976]
[1736894542396,0.11882628,96794.0,96793.0,0.54932976]
[1736894542642,0.11393712,96794.0,96793.0,0.54932976]
[1736894544186,0.10893712,96794.0,96793.0,0.54932976]
[1736894545122,0.11293712,96794.0,96793.0,0.54932976]
[1736894546383,0.10893712,96794.0,96793.0,0.54932976]
[1736894546592,0.11293712,96794.0,96793.0,0.54932976]
[1736894547137,0.11293712,96794.0,96793.0,1.09392976]
[1736894567231,0.0087102,96794.0,96793.0,1.19392976]
[1736894569116,0.0047102,96794.0,96793.0,1.19392976]
[1736894569323,0.0047102,96794.0,96793.0,1.19492976]
[1736894569607,0.0057102,96794.0,96793.0,1.19492976]
[1736894577049,0.0057102,96794.0,96793.0,1.28698185]
[1736894577796,0.0057102,96794.0,96793.0,1.29915668]
[1736894578510,0.0057102,96794.0,96793.0,1.43723482]
[1736894579366,0.0057102,96794.0,96793.0,1.39915668]
[1736894580125,0.0057102,96794.0,96793.0,1.39815668]
[1736894580331,0.0057102,96794.0,96793.0,1.39915668]
[1736894580332,0.0047102,96794.0,96793.0,1.39915668]
[1736894580560,0.0057102,96794.0,96793.0,1.30515668]
[1736894580953,0.0057102,96794.0,96793.0,1.30415668]
[1736894581807,0.0047102,96794.0,96793.0,1.29815668]
[1736894582146,0.0057102,96794.0,96793.0,1.30615668]
[1736894582357,0.0057102,96794.0,96793.0,1.31115668]
[1736894582846,0.0057102,96794.0,96793.0,1.30692976]
[1736894583248,0.0008537,96795.0,96794.0,0.84608084]
[1736894583453,0.0008537,96795.0,96794.0,0.95030776]
[1736894585367,0.0018537,96795.0,96794.0,0.95730776]
[1736894586050,0.0018537,96795.0,96794.0,0.96230776]
[1736894586246,0.0018537,96795.0,96794.0,1.06653468]
[1736894586932,0.0018537,96795.0,96794.0,1.09857387]
[1736894587968,0.0018537,96795.0,96794.0,1.06653468]
[1736894589146,0.0018537,96795.0,96794.0,1.61113468]
[1736894591555,0.0018537,96795.0,96794.0,1.88783648]
[1736894594449,0.0018537,96795.0,96794.0,1.61113468]
[1736894608018,0.0018537,96795.0,96794.0,1.64318245]
[1736894609458,7e-07,96795.0,96794.0,1.79318245]
[1736894610394,7e-07,96795.0,96794.0,1.7949748]
[1736894611161,0.0008542,96795.0,96794.0,1.7949748]
[1736894620787,2e-07,96795.0,96794.0,1.8179748]
[1736894621121,2e-07,96795.0,96794.0,3.3179748]
[1736894621755,0.0008535,96814.0,96813.0,0.632283]
[1736894621950,0.0008535,96814.0,96813.0,0.70048941]
[1736894622169,0.0008535,96814.0,96813.0,1.56259025]
[1736894622349,5e-07,96814.0,96813.0,1.66681717]
[1736894623091,5e-07,96814.0,96813.0,1.67281717]
[1736894623650,5e-07,96814.0,96813.0,1.67681717]
[1736894624088,5e-07,96814.0,96813.0,2.08590069]
[1736894624895,5e-07,96814.0,96813.0,1.67681717]
[1736894625625,5e-07,96814.0,96813.0,1.69737652]
[1736894627671,5e-07,96814.0,96813.0,1.65018019]
[1736894627906,5e-07,96814.0,96813.0,1.55018019]
[1736894628107,4.954e-05,96817.0,96816.0,0.0999]
[1736894628333,4.954e-05,96817.0,96816.0,0.17812]
[1736894628669,4.954e-05,96817.0,96816.0,0.17915258]
[1736894628869,4.954e-05,96817.0,96816.0,1.04003292]
[1736894629063,4.954e-05,96817.0,96816.0,1.03900034]
[1736894629604,4.954e-05,96817.0,96816.0,1.14322726]
[1736894629810,4.954e-05,96817.0,96816.0,1.14722726]
[1736894630730,4.954e-05,96817.0,96816.0,1.04300034]
[1736894631320,4.954e-05,96817.0,96816.0,1.04200034]
[1736894631619,4.954e-05,96817.0,96816.0,1.04300034]
[1736894631766,4.954e-05,96817.0,96816.0,1.04000034]
[1736894631977,4.954e-05,96817.0,96816.0,1.03900034]
[1736894632181,0.00104954,96817.0,96816.0,1.03900034]
[1736894632582,0.00104954,96817.0,96816.0,1.04000034]
[1736894632846,0.00104954,96817.0,96816.0,1.05000034]
[1736894633135,0.00104954,96817.0,96816.0,1.04900034]
[1736894634769,0.00190284,96817.0,96816.0,1.05000034]
[1736894637533,0.08210284,96817.0,96816.0,1.05000034]
[1736894638554,0.08210284,96817.0,96816.0,1.09000034]
[1736894638729,0.08210284,96817.0,96816.0,0.99010034]
[1736894639094,0.13577758,96817.0,96816.0,1.09000034]
[1736894639217,0.14102297,96817.0,96816.0,1.09000034]
[1736894639440,0.13577758,96817.0,96816.0,1.05178034]
[1736894639650,0.13254823,96817.0,96816.0,0.95188034]
[1736894639872,0.23152976,96817.0,96816.0,0.95188034]
[1736894640127,0.23152976,96817.0,96816.0,0.40728034]
[1736894640342,0.38677537,96817.0,96816.0,0.40728034]
[1736894640553,0.39245537,96817.0,96816.0,0.40728034]
[1736894640796,0.44713698,96817.0,96816.0,0.27918034]
[1736894640982,0.44613698,96817.0,96816.0,0.27918034]
[1736894641186,0.4579837,96817.0,96816.0,0.27918034]
[1736894641467,0.4579837,96817.0,96816.0,0.21668034]
[1736894641468,0.3894837,96817.0,96816.0,0.21668034]
[1736894641835,0.3894837,96817.0,96816.0,0.21568034]
[1736894641836,0.3814837,96817.0,96816.0,0.21568034]
[1736894642120,0.3894837,96817.0,96816.0,0.21668034]
[1736894642350,0.3894837,96817.0,96816.0,0.21568034]
[1736894642583,0.4014837,96817.0,96816.0,0.21668034]
[1736894643214,0.4244837,96817.0,96816.0,0.21668034]
[1736894643435,0.4204837,96817.0,96816.0,0.21668034]
[1736894644126,0.4204837,96817.0,96816.0,0.21568034]
[1736894644127,0.4044837,96817.0,96816.0,0.21568034]
[1736894644382,0.4352637,96817.0,96816.0,0.21668034]
[1736894644599,0.4402637,96817.0,96816.0,0.21568034]
[1736894644825,0.6173227,96817.0,96816.0,0.21568034]
[1736894645056,0.6263227,96817.0,96816.0,0.21668034]
[1736894645307,0.6213227,96817.0,96816.0,0.21668034]
[1736894645490,0.6253227,96817.0,96816.0,0.21668034]
[1736894645788,0.6073227,96817.0,96816.0,0.21568034]
[1736894645960,0.6033227,96817.0,96816.0,0.21568034]
[1736894646114,0.6033227,96817.0,96816.0,0.21668034]
[1736894646115,0.6173227,96817.0,96816.0,0.21668034]
[1736894646318,0.6061827,96817.0,96816.0,0.21668034]
[1736894646841,0.6062827,96817.0,96816.0,0.21668034]
[1736894647241,0.5972827,96817.0,96816.0,0.21747227]
[1736894647763,0.6012827,96817.0,96816.0,0.21847227]
[1736894647968,0.6042827,96817.0,96816.0,0.21847227]
[1736894648533,0.5922827,96817.0,96816.0,0.21747227]
[1736894648724,0.6072827,96817.0,96816.0,0.21947227]
[1736894650383,0.62348481,96817.0,96816.0,0.21947227]
[1736894650640,0.45756581,96817.0,96816.0,0.21947227]
[1736894650864,0.62122381,96817.0,96816.0,0.21947227]
[1736894651975,0.6050217,96817.0,96816.0,0.21947227]
[1736894653123,0.5919797,96817.0,96816.0,0.21947227]
[1736894655186,0.60818175,96817.0,96816.0,0.21947227]
[1736894655609,0.5919797,96817.0,96816.0,0.21947227]
[1736894658046,0.5919797,96817.0,96816.0,0.16884233]
[1736894658823,0.60818179,96817.0,96816.0,0.16884233]
[1736894660033,0.5919797,96817.0,96816.0,0.16884233]
[1736894661026,0.5919797,96817.0,96816.0,0.14293356]
[1736894662050,0.5919797,96817.0,96816.0,0.12084071]
[1736894662254,0.5919797,96817.0,96816.0,0.09584071]
[1736894662463,0.5919797,96817.0,96816.0,0.07423851]
[1736894663140,0.5919797,96817.0,96816.0,0.07413851]
[1736894663141,0.60818171,96817.0,96816.0,0.07413851]
[1736894665782,0.64958471,96817.0,96816.0,0.07403851]
[1736894666247,0.02178,96804.0,96794.0,0.00179235]
[1736894666453,0.46084892,96795.0,96794.0,0.00179235]
[1736894666826,0.46621475,96795.0,96794.0,0.00179235]
[1736894668549,0.47521475,96795.0,96794.0,0.00179235]
[1736894669934,0.4887815,96795.0,96794.0,0.00179235]
[1736894670115,0.57898215,96795.0,96794.0,0.00179235]
[1736894671179,0.58466215,96795.0,96794.0,0.00179235]
[1736894671335,0.60548258,96795.0,96794.0,0.00179235]
[1736894675853,0.60548258,96795.0,96794.0,0.13029235]
[1736894677866,0.60548258,96795.0,96794.0,0.13019235]
[1736894678066,0.51528193,96795.0,96794.0,0.13019235]
[1736894693833,0.51528193,96795.0,96794.0,0.17108235]
[1736894695217,0.51613543,96795.0,96794.0,0.17108235]
[1736894700045,0.5107696,96795.0,96794.0,0.17108235]
[1736894700249,0.51599985,96795.0,96794.0,0.17108235]
[1736894700526,0.62022677,96795.0,96794.0,0.17108235]
[1736894700927,0.51599985,96795.0,96794.0,0.17108235]
[1736894738354,0.51599985,96795.0,96794.0,0.04258235]
[1736894742175,0.70160215,96795.0,96794.0,0.04258235]
[1736894742774,0.51599985,96795.0,96794.0,0.04258235]
[1736894748288,0.53899985,96795.0,96794.0,0.04258235]
[1736894748452,0.66500677,96795.0,96794.0,0.04258235]
[1736894748650,0.66000677,96795.0,96794.0,0.04258235]
[1736894749460,0.66000677,96795.0,96785.0,0.1237]
[1736894749461,0.356641,96786.0,96785.0,0.1237]
[1736894749670,0.46086792,96786.0,96785.0,0.1237]
[1736894749879,0.46639041,96786.0,96785.0,0.1237]
[1736894750118,0.53445871,96786.0,96785.0,0.1237]
[1736894751326,0.53645871,96786.0,96764.0,0.0999]
[1736894751563,0.29900692,96783.0,96782.0,0.00184698]
[1736894752064,0.30452954,96783.0,96782.0,0.00184698]
[1736894752289,0.40488132,96783.0,96782.0,0.00184698]
[1736894753046,0.41288132,96783.0,96782.0,0.00184698]
[1736894753981,0.41488132,96783.0,96782.0,0.00184698]
[1736894754563,0.40488132,96783.0,96782.0,0.00184698]
[1736894754756,0.41388132,96783.0,96782.0,0.00184698]
[1736894755184,0.40488132,96783.0,96782.0,0.00184698]
[1736894755381,0.41388132,96783.0,96782.0,0.00184698]
[1736894756487,0.41688132,96783.0,96782.0,0.00184698]
[1736894756893,0.42479347,96783.0,96782.0,0.00184698]
[1736894757292,0.42679347,96783.0,96782.0,0.00184698]
[1736894757495,0.41779347,96783.0,96782.0,0.00184698]
[1736894757735,0.41579347,96783.0,96782.0,0.00184698]
[1736894757957,0.42479347,96783.0,96782.0,0.00184698]
[1736894758150,0.42779347,96783.0,96782.0,0.00184698]
[1736894762080,0.42789347,96783.0,96782.0,0.00184698]
[1736894762480,0.356688,96764.0,96763.0,0.04585302]
[1736894762719,0.356688,96764.0,96763.0,0.04400604]
[1736894762720,0.54577742,96764.0,96763.0,0.04400604]
[1736894762961,0.55116897,96764.0,96763.0,0.04400604]
[1736894763160,0.57416897,96764.0,96763.0,0.04400604]
[1736894763632,0.57416897,96764.0,96746.0,0.3257]
[1736894763633,0.206724,96747.0,96746.0,0.3257]
[1736894763857,0.31095092,96747.0,96746.0,0.3257]
[1736894764110,0.31630033,96747.0,96746.0,0.3257]
[1736894764448,0.34521989,96747.0,96746.0,0.3257]
[1736894764921,0.34521989,96747.0,96746.0,0.32619587]
[1736894765306,0.34721989,96747.0,96746.0,0.32619587]
[1736894765497,0.34721989,96747.0,96746.0,0.40209587]
[1736894765697,0.34721989,96747.0,96746.0,0.44979587]
[1736894766298,0.50839319,96747.0,96746.0,0.44979587]
[1736894767083,0.50639319,96747.0,96746.0,0.44979587]
[1736894767307,0.51339319,96747.0,96746.0,0.44979587]
[1736894767461,0.53639319,96747.0,96746.0,0.12409587]
[1736894768144,0.53639319,96747.0,96746.0,0.04819587]
[1736894770660,0.52939319,96747.0,96746.0,0.04819587]
[1736894770903,0.53739319,96747.0,96746.0,0.04819587]
[1736894774804,0.52939319,96747.0,96746.0,0.04819587]
[1736894775352,0.55317319,96747.0,96746.0,0.04819587]
[1736894775548,0.56217319,96747.0,96746.0,0.04819587]
[1736894776347,0.56785319,96747.0,96746.0,0.04904967]
[1736894778876,0.54607319,96747.0,96746.0,0.04904967]
[1736894780756,0.48847363,96747.0,96746.0,0.12684967]
[1736894781181,0.28174963,96747.0,96746.0,0.45254967]
[1736894781516,0.08174963,96747.0,96746.0,0.45254967]
[1736894781734,0.01634941,96747.0,96746.0,0.63066967]
[1736894781956,0.01620899,96781.0,96763.0,0.1256]
[1736894782147,0.10601991,96764.0,96763.0,0.52952]
[1736894782936,0.10601991,96764.0,96763.0,0.62942]
[1736894783919,0.10801991,96764.0,96763.0,0.62942]
[1736894784691,0.00379299,96764.0,96763.0,1.24065479]
[1736894785130,0.206656,96779.0,96773.0,0.0999]
[1736894785380,0.10422692,96778.0,96774.0,0.0778]
[1736894785609,0.15,96777.0,96774.0,0.0778]
[1736894785808,0.10422692,96776.0,96774.0,0.0778]
[1736894786791,0.10422692,96776.0,96775.0,0.0478]
[1736894787007,0.10422692,96776.0,96775.0,0.1256]
[1736894787785,0.10722692,96776.0,96775.0,0.1256]
[1736894788189,0.10422692,96776.0,96775.0,0.1256]
[1736894788313,0.10722692,96776.0,96775.0,0.1256]
[1736894789593,0.10722692,96776.0,96775.0,0.1266]
[1736894789795,0.10722692,96776.0,96775.0,0.4523]
[1736894790361,0.10722692,96776.0,96775.0,0.53052]
[1736894794209,0.10722692,96776.0,96775.0,0.60427077]
[1736894794865,0.10722692,96776.0,96775.0,0.53052]
[1736894801258,0.10901991,96776.0,96775.0,0.53052]
[1736894808734,0.10901991,96776.0,96775.0,0.20482]
[1736894808969,0.10901991,96776.0,96775.0,0.74942]
[1736894810550,0.10901991,96776.0,96775.0,0.20482]
[1736894810748,0.11362156,96776.0,96775.0,0.20482]
[1736894811237,0.11362156,96776.0,96775.0,0.1266]
[1736894811894,0.18880654,96776.0,96775.0,0.001]
[1736894812531,0.11362156,96776.0,96775.0,0.001]
[1736894812743,0.15,96775.0,96766.0,0.179]
[1736894812940,0.206682,96767.0,96766.0,0.179]
[1736894813092,0.31090892,96767.0,96766.0,0.179]
[1736894813287,0.31564302,96767.0,96766.0,0.179]
[1736894813761,0.31564302,96767.0,96766.0,0.7236]
[1736894813893,0.31564302,96767.0,96766.0,0.5446]
[1736894813894,0.46564302,96767.0,96766.0,0.5446]
[1736894814303,0.46564302,96767.0,96766.0,0.5456]
[1736894814508,0.48864302,96767.0,96766.0,0.001]
[1736894814740,0.49274302,96767.0,96766.0,0.001]
[1736894814955,0.48874302,96767.0,96766.0,0.001]
[1736894815152,0.58437572,96767.0,96766.0,0.001]
[1736894815352,0.58437572,96767.0,96766.0,0.002]
[1736894815353,0.60027666,96767.0,96766.0,0.002]
[1736894815570,0.173,96766.0,96764.0,0.0008538]
[1736894815832,0.46091292,96765.0,96764.0,0.0008538]
[1736894815997,0.48391292,96765.0,96764.0,0.0008538]
[1736894816170,0.58813984,96765.0,96764.0,0.0008538]
[1736894816391,0.60991984,96765.0,96764.0,0.0008538]
[1736894817617,0.61191984,96765.0,96764.0,0.0008538]
[1736894818002,0.62091984,96765.0,96764.0,0.0018538]
[1736894818458,0.67061984,96765.0,96764.0,0.0018538]
[1736894818660,0.6868295,96765.0,96764.0,0.0018538]
[1736894818820,0.7282525,96765.0,96764.0,0.0018538]
[1736894821299,0.71204284,96765.0,96764.0,0.0018538]
[1736894823328,0.71772284,96765.0,96764.0,0.0018538]
[1736894825028,0.71951583,96765.0,96764.0,0.0018538]
[1736894825256,0.56568891,96765.0,96764.0,0.0018538]
[1736894825463,0.50248591,96765.0,96764.0,0.0018538]
[1736894825731,0.50662791,96765.0,96764.0,0.0018538]
[1736894826962,0.50094791,96765.0,96764.0,0.0018538]
[1736894827183,0.50662791,96765.0,96764.0,0.0018538]
[1736894830128,0.50652791,96765.0,96764.0,0.0018538]
[1736894831034,0.50662791,96765.0,96764.0,0.0018538]
[1736894831238,0.50652791,96765.0,96764.0,0.0018538]
[1736894831415,0.47938591,96765.0,96764.0,0.0018538]
[1736894836256,0.57282251,96765.0,96764.0,0.0118538]
[1736894836799,0.47938591,96765.0,96764.0,0.0118538]